fUST/lending_fUST_20250530
["ID","MTS","AMOUNT","RATE_DAILY","PERIOD"]
[362990785,1748544653491,-151.0,0.00021917,2]
[362990787,1748544653501,-151.0,0.00021917,2]
[362990789,1748544653510,-151.0,0.00021917,2]
[362990791,1748544653519,-538.22816113,0.00021917,2]
[362990793,1748544653528,-463.127135,0.00021917,2]
[362990795,1748544653538,-463.127135,0.00021917,2]
[362990797,1748544653547,-233.168931,0.00021917,2]
[362990799,1748544653556,-233.168931,0.00021917,2]
[362990801,1748544653565,-424.140348,0.00021917,2]
[362990803,1748544653574,-424.140348,0.00021917,2]
[362990805,1748544653584,-691.264982,0.00021917,2]
[362990807,1748544653594,-691.264982,0.00021917,2]
[362990809,1748544653604,-151.0,0.00021917,2]
[362990811,1748544653613,-3111.65,0.00021917,2]
[362990813,1748544653622,-151.0,0.00021917,2]
[362990815,1748544653631,-500.08,0.00021917,2]
[362990817,1748544653641,-430.0,0.00021917,2]
[362990819,1748544653650,-1006.774129,0.00021917,2]
[362990821,1748544653660,-430.0,0.00021917,2]
[362990823,1748544653669,-1006.774129,0.00021917,2]
[362990825,1748544653679,-151.0,0.00021917,2]
[362990827,1748544653689,-756.66,0.00021917,2]
[362990829,1748544653698,-151.0,0.00021917,2]
[362990830,1748544653707,-236.955466,0.00021917,2]
[362990831,1748544653716,-236.955466,0.00021917,2]
[362990832,1748544653725,-430.0,0.00021917,2]
[362990833,1748544653734,-151.0,0.00021917,2]
[362990834,1748544653742,-555.41,0.00021917,2]
[362990835,1748544653751,-430.0,0.00021917,2]
[362990836,1748544653759,-521.84,0.00021917,2]
[362990837,1748544653769,-151.0,0.00021917,2]
[362990839,1748544653779,-151.0,0.00021917,2]
[362990841,1748544653788,-430.0,0.00021917,2]
[362990843,1748544653797,-478.0,0.00021917,2]
[362990845,1748544653806,-238.957691,0.00021917,2]
[362990847,1748544653815,-3430.51,0.00021917,2]
[362990849,1748544653824,-238.957691,0.00021917,2]
[362990851,1748544653834,-1274.434918,0.00021917,2]
[362990853,1748544653844,-1274.434918,0.00021917,2]
[362990855,1748544653853,-430.0,0.00021917,2]
[362990857,1748544653862,-439.13,0.00021917,2]
[362990859,1748544653871,-6308.76,0.00021917,2]
[362990861,1748544653881,-733.34,0.00021917,2]
[362990863,1748544653890,-430.0,0.00021917,2]
[362990865,1748544653899,-530.0,0.00021917,2]
[362990867,1748544653909,-4082.61,0.00021917,2]
[362990869,1748544653918,-7913.47,0.00021917,2]
[362990871,1748544653928,-430.0,0.00021917,2]
[362990873,1748544653937,-562.32,0.00021917,2]
[362990875,1748544653948,-430.0,0.00021917,2]
[362990877,1748544653957,-2960.37,0.00021917,2]
[362990879,1748544653966,-1557.95,0.00021917,2]
[362990881,1748544653975,-1318.463387,0.00021917,2]
[362990883,1748544653986,-1565.84,0.00021917,2]
[362990885,1748544653996,-430.0,0.00021917,2]
[362990887,1748544654005,-1318.463387,0.00021917,2]
[362990889,1748544654014,-11031.57,0.00021917,2]
[362990891,1748544654025,-513.4,0.00021917,2]
[362990893,1748544654034,-1684.87,0.00021917,2]
[362990895,1748544654044,-862.22,0.00021917,2]
[362990897,1748544654054,-627.42,0.00021917,2]
[362990899,1748544654063,-581.49,0.00021917,2]
[362990901,1748544654072,-939.28,0.00021917,2]
[362990903,1748544654082,-430.0,0.00021917,2]
[362990905,1748544654091,-430.0,0.00021917,2]
[362990907,1748544654101,-168.8914,0.00021917,2]
[362990909,1748544654110,-776.76,0.00021917,2]
[362990911,1748544654119,-254.88,0.00021917,2]
[362990912,1748544654129,-5200.91,0.00021917,2]
[362990914,1748544654138,-168.8914,0.00021917,2]
[362990916,1748544654147,-3779.83,0.00021917,2]
[362990918,1748544654156,-430.0,0.00021917,2]
[362990920,1748544654165,-1108.2,0.00021917,2]
[362990922,1748544654175,-3302.48,0.00021917,2]
[362990924,1748544654184,-430.0,0.00021917,2]
[362990926,1748544654194,-5166.95,0.00021917,2]
[362990928,1748544654203,-4797.54,0.00021917,2]
[362990931,1748544654212,-2050.84,0.00021917,2]
[362990933,1748544654222,-6823.57,0.00021917,2]
[362990935,1748544654232,-8016.39,0.00021917,2]
[362990937,1748544654241,-3759.17,0.00021917,2]
[362990939,1748544654250,-430.0,0.00021917,2]
[362990941,1748544654259,-9010.07,0.00021917,2]
[362990942,1748544654268,-1130.1,0.00021917,2]
[362990945,1748544654278,-3158.87,0.00021917,2]
[362990947,1748544654288,-430.0,0.00021917,2]
[362990948,1748544654297,-430.0,0.00021917,2]
[362990950,1748544654306,-9431.91,0.00021917,2]
[362990952,1748544654316,-3431.33,0.00021917,2]
[362990954,1748544654325,-4892.96,0.00021917,2]
[362990956,1748544654336,-1053.47,0.00021917,2]
[362990958,1748544654346,-430.0,0.00021917,2]
[362990960,1748544654355,-430.0,0.00021917,2]
[362990962,1748544654365,-234.47944201,0.00021917,2]
[362991004,1748544654753,-280.4939083,0.00019178,2]
[362991006,1748544654766,-149.5060917,0.00019178,2]
[362991008,1748544654777,-430.0,0.00019178,2]
[362991010,1748544654788,-430.0,0.00019178,2]
[362991012,1748544654798,-430.0,0.00019452,2]
[362991014,1748544654807,-260.0,0.00019452,2]
[362991016,1748544654817,-430.0,0.00019452,2]
[362991018,1748544654826,-430.0,0.00019726,2]
[362991020,1748544654840,-445.29519821,0.00019726,2]
[362991022,1748544654850,-151.0,0.0002,2]
[362991024,1748544654860,-430.0,0.0002,2]
[362991026,1748544654869,-151.0,0.00020273,2]
[362991028,1748544654879,-430.0,0.00020273,2]
[362991030,1748544654889,-151.0,0.00020547,2]
[362991032,1748544654898,-151.0,0.00020821,2]
[362991034,1748544654908,-151.0,0.00021107,2]
[362991045,1748544654919,-224.0,0.00021643,2]
[362991047,1748544655023,-195.52055799,0.00021917,2]
[362991049,1748544655034,-1281.76,0.00021917,2]
[362991051,1748544655043,-4566.82444531,0.00021917,2]
[362991054,1748544655055,-2124.10555469,0.00021917,2]
[362991056,1748544655065,-430.0,0.00021917,2]
[362991058,1748544655075,-1894.48,0.00021917,2]
[362991060,1748544655088,-536.44,0.00021917,2]
[362991062,1748544655098,-1020.7,0.00021917,2]
[362991064,1748544655107,-524.33,0.00021917,2]
[362991066,1748544655117,-151.0,0.00021917,2]
[362991068,1748544655126,-6170.99,0.00021917,2]
[362991070,1748544655136,-151.0,0.00021917,2]
[362991072,1748544655146,-430.0,0.00021917,2]
[362991074,1748544655155,-465.028516,0.00021918,2]
[362991076,1748544655164,-160.0,0.00021924,3]
[362991078,1748544655174,-4508.21039794,0.00021969,6]
[362991080,1748544655186,-2121.89815271,0.00021969,6]
[362991082,1748544655195,-600.31,0.00022,7]
[362991084,1748544655205,-35454.04,0.00022,7]
[362991086,1748544655215,-7115.24,0.00022,2]
[362991088,1748544655224,-14542.7982496,0.00022,2]
[362991120,1748544655535,-430.0,0.00019178,2]
[362991122,1748544655545,-430.0,0.00019178,2]
[362991124,1748544655555,-430.0,0.00019178,2]
[362991125,1748544655564,-430.0,0.00019178,2]
[362991127,1748544655573,-430.0,0.00019452,2]
[362991129,1748544655587,-430.0,0.00019452,2]
[362991131,1748544655596,-430.0,0.00019452,2]
[362991133,1748544655606,-430.0,0.00019452,2]
[362991135,1748544655615,-430.0,0.00019726,2]
[362991137,1748544655625,-430.0,0.00019726,2]
[362991139,1748544655635,-430.0,0.00019726,2]
[362991141,1748544655644,-430.0,0.0002,2]
[362991143,1748544655653,-408.16070578,0.0002,2]
[362991145,1748544655662,-430.0,0.00020273,2]
[362991147,1748544655672,-2446.02217088,0.00022,2]
[362991150,1748544655688,-430.0,0.0002,2]
[362991152,1748544655696,-273.23,0.00022,2]
[362991154,1748544655707,-1129.52690838,0.00022,2]
[362993843,1748544693365,212.54,0.00015782,2]
[362993844,1748544693760,318.82,0.00017098,2]
[362993913,1748544813016,155.0,0.0002328,120]
[362993914,1748544813502,155.0,0.0002327,120]
[362993915,1748544813975,155.0,0.0002326,120]
[362993916,1748544836471,195.28,0.00015718,2]
[362993917,1748544851659,1385.0965623,0.00016,2]
[362993918,1748544851682,6932.1734377,0.00016,2]
[362993919,1748544908688,195.55,0.00015803,2]
[362993920,1748544980423,188.44,0.00015852,2]
[362993921,1748545051989,181.59,0.00015833,2]
[362993922,1748545120195,181.59,0.00015846,2]
[362993923,1748545172945,150.5,0.0002328,120]
[362993924,1748545173394,150.5,0.0002327,120]
[362993925,1748545174068,150.5,0.0002326,120]
[362993926,1748545184169,150.0,0.00014526,2]
[362993927,1748545196326,2496.36678452,0.00016,2]
[362993928,1748545196349,10325.71022222,0.00016,2]
[362993929,1748545196373,10325.71022222,0.00016,2]
[362993930,1748545196395,10325.71022222,0.00016,2]
[362993931,1748545196417,3894.93853294,0.00016,2]
[362993932,1748545251888,150.0,0.00014441,2]
[362993933,1748545252290,176.13,0.00015754,2]
[362993934,1748545334485,174.46,0.00015766,2]
[362993936,1748545377455,155.82367302,6.8e-07,2]
[362993937,1748545406643,203.27,0.00015777,2]
[362993938,1748545477081,209.01,0.00015773,2]
[362993940,1748545533152,150.5,0.0002328,120]
[362993941,1748545533602,150.5,0.0002327,120]
[362993942,1748545534068,150.5,0.0002326,120]
[362993943,1748545548252,261.22,0.00014603,2]
[362993944,1748545548674,391.83,0.00015266,2]
[362993945,1748545549085,522.44,0.0001593,2]
[362993946,1748545552125,-500.75240362,0.00016594,2]
[362993947,1748545559089,-152.29759638,0.00016594,2]
[362993948,1748545559110,-675.88417736,0.00016909,2]
[362993949,1748545559131,-186.30106518,0.00017258,2]
[362993952,1748545606297,876.738482,0.00013699,2]
[362993955,1748545618895,220.92,0.00014444,2]
[362993956,1748545619097,331.38,0.00015101,2]
[362993957,1748545619499,441.84,0.00015758,2]
[362993958,1748545626159,-433.43408857,0.00016414,2]
[362993959,1748545627076,-118.86591143,0.00016414,2]
[362993960,1748545627098,-662.76,0.00017071,2]
[362993961,1748545627121,-269.3697868,0.00017085,2]
[362993962,1748545627147,-773.22,0.00017727,2]
[362993963,1748545627180,-57.13032723,0.00017999,2]
[362993964,1748545632102,-290.65537564,0.00017999,2]
[362993965,1748545639099,-1432.61379296,0.00017819,2]
[362993966,1748545651097,-301.70967876,0.00017819,2]
[362993967,1748545653073,-101.82169006,0.00017819,2]
[362993968,1748545653095,-269.31968332,0.00017999,2]
[362993970,1748545689628,182.23,0.0001511,2]
[362993971,1748545690074,242.98,0.00015766,2]
[362993973,1748545747081,-303.72,0.00016423,2]
[362993974,1748545747101,-364.47,0.0001708,2]
[362993975,1748545748135,-425.21,0.00017737,2]
[362993982,1748545759324,165.67,0.00016404,2]
[362993983,1748545759720,198.8,0.0001706,2]
[362993984,1748545760131,231.94,0.00017716,2]
[362993986,1748545763099,-3681.88923951,0.00017999,2]
[362993987,1748545763120,-300.0,0.00018149,2]
[362993988,1748545763141,-6184.9720153,0.0001815,2]
[362993989,1748545763162,-265.07,0.00018372,2]
[362993990,1748545763183,-5226.81842519,0.00018382,2]
[362993991,1748545766204,-399.90527561,0.00018382,2]
[362994017,1748545828475,200.65,0.0001508,2]
[362994018,1748545828915,267.54,0.00015736,2]
[362994019,1748545829485,497.93652439,0.00018173,2]
[362994020,1748545829804,334.42,0.00016391,2]
[362994022,1748545830216,4.46204881,0.00017047,2]
[362994023,1748545830237,396.84795119,0.00017047,2]
[362994024,1748545830616,445.95204881,0.00017703,2]
[362994066,1748545832175,-22.23795119,0.00017703,2]
[362994068,1748545832184,-2485.99965616,0.00018173,2]
[362994070,1748545832197,-8479.63015525,0.00018173,2]
[362994073,1748545832207,-535.08,0.00018358,2]
[362994077,1748545832217,-601.96,0.00019014,2]
[362994080,1748545832227,-455.64011541,0.00019078,2]
[362994081,1748545832237,-151.00000001,0.00019166,2]
[362994084,1748545832247,-300.0,0.00019167,2]
[362994088,1748545832257,-1770.71559469,0.00019168,2]
[362994090,1748545832267,-558.55,0.00019168,3]
[362994092,1748545832276,-279.28,0.00019168,3]
[362994094,1748545832289,-334.01,0.00019168,3]
[362994096,1748545832299,-167.0,0.00019168,3]
[362994097,1748545832309,-501.04,0.00019168,3]
[362994099,1748545832319,-357.91419144,0.00019177,2]
[362994101,1748545832329,-500.0,0.00019177,2]
[362994103,1748545832339,-600.0,0.00019177,2]
[362994105,1748545832350,-500.0,0.00019177,2]
[362994107,1748545832360,-500.0,0.00019177,2]
[362994109,1748545832370,-737.92683732,0.00019177,2]
[362994111,1748545832380,-371.86126438,0.00019177,2]
[362994113,1748545832391,-737.92683732,0.00019177,2]
[362994114,1748545832401,-737.92683732,0.00019177,2]
[362994115,1748545832412,-430.0,0.00019178,2]
[362994116,1748545832422,-200.0,0.00019178,2]
[362994117,1748545832433,-493.24934284,0.00019178,2]
[362994118,1748545832444,-430.0,0.00019178,2]
[362994119,1748545832454,-430.0,0.00019178,2]
[362994120,1748545832463,-450.0,0.00019178,2]
[362994121,1748545832472,-430.0,0.00019178,2]
[362994122,1748545832482,-430.0,0.00019178,2]
[362994123,1748545832491,-430.0,0.00019178,2]
[362994124,1748545832501,-430.0,0.00019178,2]
[362994125,1748545832510,-430.0,0.00019178,2]
[362994126,1748545832519,-152.89878652,0.00019178,2]
[362994127,1748545832529,-430.0,0.00019178,2]
[362994128,1748545832543,-430.0,0.00019178,2]
[362994129,1748545832553,-430.0,0.00019178,2]
[362994130,1748545832563,-430.0,0.00019178,2]
[362994131,1748545832572,-430.0,0.00019178,2]
[362994132,1748545832581,-400.89997093,0.00019178,2]
[362994133,1748545832590,-430.0,0.00019178,2]
[362994134,1748545832599,-430.0,0.00019178,2]
[362994135,1748545832608,-400.0,0.00019178,2]
[362994136,1748545832617,-400.0,0.00019178,2]
[362994137,1748545832626,-454.7468304,0.00019178,2]
[362994138,1748545832635,-430.0,0.00019178,2]
[362994139,1748545832644,-430.0,0.00019178,2]
[362994140,1748545832654,-500.0,0.00019178,2]
[362994141,1748545832666,-500.0,0.00019178,2]
[362994143,1748545832675,-500.0,0.00019178,2]
[362994144,1748545832685,-500.0,0.00019178,2]
[362994146,1748545832695,-500.0,0.00019178,2]
[362994148,1748545832705,-500.0,0.00019178,2]
[362994150,1748545832715,-430.0,0.00019178,2]
[362994152,1748545832724,-385.23465037,0.00019178,2]
[362994154,1748545832733,-351.19887758,0.00019178,2]
[362994156,1748545832743,-385.56374583,0.00019178,2]
[362994158,1748545832753,-430.0,0.00019178,2]
[362994160,1748545832763,-481.63,0.00019178,2]
[362994162,1748545832772,-430.0,0.00019178,2]
[362994164,1748545832785,-430.0,0.00019178,2]
[362994166,1748545832794,-400.0,0.00019178,2]
[362994168,1748545832804,-430.0,0.00019178,2]
[362994170,1748545832813,-430.0,0.00019178,2]
[362994172,1748545832823,-430.0,0.00019178,2]
[362994174,1748545832832,-430.0,0.00019178,2]
[362994176,1748545832842,-430.0,0.00019178,2]
[362994178,1748545832851,-430.0,0.00019178,2]
[362994180,1748545832861,-374.11694667,0.00019178,2]
[362994182,1748545832871,-430.0,0.00019178,2]
[362994184,1748545832880,-285.0,0.00019178,2]
[362994186,1748545832890,-430.0,0.00019178,2]
[362994187,1748545832899,-369.42662462,0.00019178,2]
[362994190,1748545832915,-80.57337538,0.00019178,2]
[362994192,1748545832924,-430.0,0.00019178,2]
[362994194,1748545832934,-430.0,0.00019178,2]
[362994196,1748545832942,-430.0,0.00019178,2]
[362994198,1748545832952,-279.67662462,0.00019178,2]
[362994201,1748545832968,-150.32337538,0.00019178,2]
[362994203,1748545832978,-430.0,0.00019178,2]
[362994205,1748545832987,-430.0,0.00019178,2]
[362994207,1748545832997,-430.0,0.00019178,2]
[362994209,1748545833006,-430.0,0.00019178,2]
[362994211,1748545833016,-430.0,0.00019178,2]
[362994213,1748545833025,-430.0,0.00019178,2]
[362994215,1748545833038,-430.0,0.00019178,2]
[362994217,1748545833048,-469.1,0.00019178,2]
[362994219,1748545833058,-430.0,0.00019178,2]
[362994221,1748545833068,-430.0,0.00019178,2]
[362994223,1748545833077,-430.0,0.00019178,2]
[362994225,1748545833087,-430.0,0.00019178,2]
[362994227,1748545833097,-507.37100855,0.00019178,2]
[362994229,1748545833107,-430.0,0.00019178,2]
[362994231,1748545833117,-450.0,0.00019178,2]
[362994233,1748545833127,-521.89612473,0.00019178,2]
[362994235,1748545833136,-430.0,0.00019178,2]
[362994237,1748545833146,-2641.05,0.00019178,2]
[362994239,1748545833156,-196.9660859,0.00019178,2]
[362994241,1748545833169,-233.0339141,0.00019178,2]
[362994243,1748545833179,-430.0,0.00019178,2]
[362994245,1748545833188,-454.64700913,0.00019178,2]
[362994247,1748545833197,-430.48011042,0.00019178,2]
[362994249,1748545833207,-1012.03950601,0.00019178,2]
[362994251,1748545833216,-430.0,0.00019178,2]
[362994253,1748545833226,-430.0,0.00019178,2]
[362994254,1748545833235,-451.13242223,0.00019178,2]
[362994256,1748545833245,-453.59156751,0.00019178,2]
[362994258,1748545833255,-330.20983045,0.00019178,2]
[362994260,1748545833264,-430.0,0.00019178,2]
[362994262,1748545833274,-401.47543091,0.00019178,2]
[362994263,1748545833286,-451.60956641,0.00019178,2]
[362994264,1748545833297,-430.0,0.00019178,2]
[362994265,1748545833306,-430.0,0.00019178,2]
[362994266,1748545833317,-430.0,0.00019178,2]
[362994267,1748545833327,-450.0,0.00019178,2]
[362994268,1748545833337,-213.97223498,0.00019178,2]
[362994269,1748545833350,-430.0,0.00019178,2]
[362994270,1748545833360,-454.16718036,0.00019178,2]
[362994275,1748545833512,-430.0,0.00019178,2]
[362994278,1748545833529,-430.0,0.00019178,2]
[362994280,1748545833542,-450.0,0.00019178,2]
[362994282,1748545833552,-430.0,0.00019178,2]
[362994284,1748545833562,-430.0,0.00019178,2]
[362994286,1748545833571,-456.74614325,0.00019178,2]
[362994288,1748545833580,-300.0,0.00019178,2]
[362994290,1748545833590,-453.53202309,0.00019178,2]
[362994292,1748545833599,-430.0,0.00019178,2]
[362994294,1748545833608,-430.0,0.00019178,2]
[362994296,1748545833618,-453.74075566,0.00019178,2]
[362994298,1748545833627,-430.0,0.00019178,2]
[362994300,1748545833637,-450.0,0.00019178,2]
[362994302,1748545833646,-455.1735352,0.00019178,2]
[362994304,1748545833656,-450.0,0.00019178,2]
[362994306,1748545833666,-430.0,0.00019178,2]
[362994308,1748545833676,-430.0,0.00019178,2]
[362994310,1748545833699,-430.0,0.00019178,2]
[362994312,1748545833709,-450.94813519,0.00019178,2]
[362994314,1748545833721,-430.0,0.00019178,2]
[362994316,1748545833731,-430.0,0.00019178,2]
[362994318,1748545833741,-310.62575827,0.00019178,2]
[362994320,1748545833750,-822.05,0.00019178,2]
[362994322,1748545833759,-430.0,0.00019178,2]
[362994324,1748545833769,-430.0,0.00019178,2]
[362994326,1748545833779,-430.0,0.00019178,2]
[362994328,1748545833795,-430.0,0.00019178,2]
[362994330,1748545833805,-450.0,0.00019178,2]
[362994332,1748545833814,-430.0,0.00019178,2]
[362994334,1748545833824,-240.31309252,0.00019178,2]
[362994335,1748545833834,-450.0,0.00019178,2]
[362994337,1748545833844,-450.0,0.00019178,2]
[362994339,1748545833854,-430.0,0.00019178,2]
[362994341,1748545833864,-430.0,0.00019178,2]
[362994343,1748545833874,-450.0,0.00019178,2]
[362994345,1748545833883,-430.0,0.00019178,2]
[362994347,1748545833893,-430.0,0.00019178,2]
[362994349,1748545833903,-453.27004697,0.00019178,2]
[362994351,1748545833914,-2102.37,0.00019178,2]
[362994353,1748545833924,-430.0,0.00019178,2]
[362994355,1748545833934,-430.0,0.00019178,2]
[362994357,1748545833944,-430.0,0.00019178,2]
[362994359,1748545833953,-430.0,0.00019178,2]
[362994361,1748545833964,-450.0,0.00019178,2]
[362994363,1748545833974,-430.0,0.00019178,2]
[362994365,1748545833983,-450.0,0.00019178,2]
[362994367,1748545833993,-454.05334703,0.00019178,2]
[362994369,1748545834003,-405.65070021,0.00019178,2]
[362994371,1748545834013,-450.91639734,0.00019178,2]
[362994373,1748545834023,-450.0,0.00019178,2]
[362994375,1748545834037,-430.0,0.00019178,2]
[362994377,1748545834047,-450.0,0.00019178,2]
[362994379,1748545834057,-169.65463713,0.00019178,2]
[362994381,1748545834067,-451.18979577,0.00019178,2]
[362994383,1748545834077,-420.0,0.00019178,2]
[362994385,1748545834087,-430.0,0.00019178,2]
[362994386,1748545834096,-459.09384521,0.00019178,2]
[362994388,1748545834107,-430.0,0.00019178,2]
[362994389,1748545834118,-247.00144133,0.00019178,2]
[362994390,1748545834128,-451.24091502,0.00019178,2]
[362994391,1748545834137,-430.0,0.00019178,2]
[362994392,1748545834147,-430.0,0.00019178,2]
[362994393,1748545834156,-441.65195025,0.00019178,2]
[362994394,1748545834167,-400.0,0.00019178,2]
[362994395,1748545834176,-430.0,0.00019178,2]
[362994396,1748545834185,-430.0,0.00019178,2]
[362994397,1748545834195,-450.71705241,0.00019178,2]
[362994398,1748545834204,-430.0,0.00019178,2]
[362994399,1748545834215,-450.0,0.00019178,2]
[362994401,1748545834225,-430.0,0.00019178,2]
[362994402,1748545834235,-450.0,0.00019178,2]
[362994403,1748545834245,-430.0,0.00019178,2]
[362994404,1748545834255,-500.0,0.00019178,2]
[362994405,1748545834266,-458.83961208,0.00019178,2]
[362994406,1748545834276,-500.0,0.00019178,2]
[362994407,1748545834290,-500.0,0.00019178,2]
[362994408,1748545834300,-500.0,0.00019178,2]
[362994409,1748545834309,-500.0,0.00019178,2]
[362994410,1748545834320,-500.0,0.00019178,2]
[362994411,1748545834330,-500.0,0.00019178,2]
[362994412,1748545834340,-495.38,0.00019178,2]
[362994413,1748545834354,-450.0,0.00019178,2]
[362994414,1748545834364,-450.0,0.00019178,2]
[362994415,1748545834374,-430.0,0.00019178,2]
[362994416,1748545834384,-430.0,0.00019178,2]
[362994417,1748545834395,-450.0,0.00019178,2]
[362994418,1748545834405,-450.0,0.00019178,2]
[362994419,1748545834415,-452.91013274,0.00019178,2]
[362994420,1748545834426,-430.0,0.00019178,2]
[362994421,1748545834438,-430.0,0.00019178,2]
[362994422,1748545834448,-430.0,0.00019178,2]
[362994423,1748545834458,-430.0,0.00019178,2]
[362994424,1748545834469,-430.0,0.00019178,2]
[362994425,1748545834478,-430.0,0.00019178,2]
[362994426,1748545834488,-430.0,0.00019178,2]
[362994427,1748545834498,-430.0,0.00019178,2]
[362994428,1748545834508,-159.2025875,0.00019178,2]
[362994429,1748545834519,-430.0,0.00019178,2]
[362994430,1748545834528,-404.69145368,0.00019178,2]
[362994431,1748545834545,-430.0,0.00019178,2]
[362994432,1748545834555,-430.0,0.00019178,2]
[362994433,1748545834565,-430.0,0.00019178,2]
[362994434,1748545834574,-598.33,0.00019178,2]
[362994435,1748545834585,-451.47711959,0.00019178,2]
[362994436,1748545834595,-430.0,0.00019178,2]
[362994437,1748545834605,-430.0,0.00019178,2]
[362994438,1748545834614,-400.0,0.00019178,2]
[362994439,1748545834624,-430.0,0.00019178,2]
[362994440,1748545834633,-430.0,0.00019178,2]
[362994441,1748545834643,-430.0,0.00019178,2]
[362994442,1748545834652,-369.33160456,0.00019178,2]
[362994443,1748545834662,-430.0,0.00019178,2]
[362994444,1748545834671,-430.0,0.00019178,2]
[362994445,1748545834681,-430.0,0.00019178,2]
[362994446,1748545834691,-430.0,0.00019178,2]
[362994447,1748545834700,-430.0,0.00019178,2]
[362994448,1748545834710,-430.0,0.00019178,2]
[362994449,1748545834719,-430.0,0.00019178,2]
[362994450,1748545834729,-430.0,0.00019178,2]
[362994451,1748545834738,-430.0,0.00019178,2]
[362994452,1748545834748,-430.0,0.00019178,2]
[362994453,1748545834757,-430.0,0.00019178,2]
[362994454,1748545834767,-430.0,0.00019178,2]
[362994455,1748545834776,-453.01389835,0.00019178,2]
[362994456,1748545834790,-571.35486077,0.00019178,2]
[362994457,1748545834799,-403.77683967,0.00019178,2]
[362994458,1748545834808,-430.0,0.00019178,2]
[362994459,1748545834818,-430.0,0.00019178,2]
[362994460,1748545834827,-250.0,0.00019178,2]
[362994461,1748545834836,-430.0,0.00019178,2]
[362994462,1748545834847,-430.0,0.00019178,2]
[362994463,1748545834857,-430.0,0.00019178,2]
[362994464,1748545834867,-430.0,0.00019178,2]
[362994465,1748545834876,-430.0,0.00019178,2]
[362994466,1748545834885,-430.0,0.00019178,2]
[362994467,1748545834894,-430.0,0.00019178,2]
[362994468,1748545834903,-453.67607203,0.00019178,2]
[362994469,1748545834911,-430.0,0.00019178,2]
[362994470,1748545834921,-430.0,0.00019178,2]
[362994471,1748545834932,-430.0,0.00019178,2]
[362994472,1748545834942,-430.0,0.00019178,2]
[362994473,1748545834950,-350.0,0.00019178,2]
[362994474,1748545834960,-400.48370489,0.00019178,2]
[362994475,1748545834969,-430.0,0.00019178,2]
[362994476,1748545834979,-430.0,0.00019178,2]
[362994477,1748545834988,-430.0,0.00019178,2]
[362994478,1748545834997,-430.0,0.00019178,2]
[362994479,1748545835006,-430.0,0.00019178,2]
[362994480,1748545835015,-430.0,0.00019178,2]
[362994481,1748545835024,-430.0,0.00019178,2]
[362994482,1748545835034,-548.72822571,0.00019178,2]
[362994483,1748545835046,-430.71893555,0.00019178,2]
[362994484,1748545835055,-430.0,0.00019178,2]
[362994485,1748545835064,-293.60200797,0.00019178,2]
[362994486,1748545835072,-1048.81,0.00019178,2]
[362994487,1748545835081,-430.0,0.00019178,2]
[362994488,1748545835090,-430.0,0.00019178,2]
[362994489,1748545835099,-430.0,0.00019178,2]